fUST/lending_fUST_20251012
["ID","MTS","AMOUNT","RATE_DAILY","PERIOD"]
[390900131,1760205170084,5000.0,0.00023592,2]
[390900132,1760205193481,5000.0,0.00023555,2]
[390900133,1760205210071,150.0,0.00018837,2]
[390900134,1760205210468,195.74,0.0002055,2]
[390900135,1760205210905,293.61,0.00022262,2]
[390900136,1760205215929,5000.0,0.00023555,2]
[390900137,1760205238589,5000.0,0.00023742,2]
[390900138,1760205260972,5000.0,0.00023742,2]
[390900139,1760205283711,5000.0,0.00023644,2]
[390900140,1760205290116,150.0,0.00019129,2]
[390900141,1760205290549,220.63,0.00020868,2]
[390900142,1760205291006,330.95,0.00022607,2]
[390900143,1760205306147,5000.0,0.00023644,2]
[390900187,1760205370794,150.0,0.00019126,2]
[390900188,1760205371199,202.78,0.00020865,2]
[390900189,1760205371605,304.16,0.00022604,2]
[390900190,1760205401741,4249.25622908,0.00023644,2]
[390900191,1760205425598,-796.33751412,0.00023414,2]
[390900192,1760205450016,150.0,0.00018886,2]
[390900193,1760205450411,223.94,0.00020603,2]
[390900194,1760205450844,335.92,0.0002232,2]
[390900195,1760205524625,5000.0,0.00023,2]
[390900196,1760205528724,150.0,0.00019048,2]
[390900197,1760205529113,205.87,0.00020779,2]
[390900198,1760205529495,-1178.48122169,0.00023041,2]
[390900199,1760205529548,308.81,0.00022511,2]
[390900200,1760205605669,150.0,0.00019049,2]
[390900201,1760205606096,188.96,0.00020781,2]
[390900202,1760205606648,283.43,0.00022512,2]
[390900203,1760205683376,150.0,0.00019039,2]
[390900204,1760205683789,173.11,0.00020769,2]
[390900205,1760205684193,259.67,0.000225,2]
[390900206,1760205691181,-5000.0,0.00023561,2]
[390900207,1760205691311,-158.61640321,0.00023799,2]
[390900208,1760205691341,-3010.20093526,0.00023886,2]
[390900209,1760205691488,-3662.37532306,0.00023886,2]
[390900210,1760205691516,-300.0,0.00023887,2]
[390900211,1760205691543,-875.25935388,0.00023887,2]
[390900212,1760205691663,-324.74064612,0.00023887,2]
[390900213,1760205691693,-300.0,0.00023888,2]
[390900214,1760205691721,-300.0,0.00023888,2]
[390900215,1760205691748,-300.0,0.00023888,2]
[390900216,1760205691775,-1200.0,0.00023889,2]
[390900217,1760205691801,-1476.38,0.0002389,3]
[390900218,1760205691828,-738.19,0.0002389,3]
[390900219,1760205691858,-352.29870776,0.0002389,3]
[390900220,1760205691958,-16.79129224,0.0002389,3]
[390900221,1760205691986,-184.55,0.0002389,3]
[390900222,1760205692018,-553.67,0.0002389,3]
[390900223,1760205692046,-727.3,0.0002389,10]
[390900224,1760205693580,-683.72,0.0002389,10]
[390900225,1760205698174,-2233.34831336,0.0002389,2]
[390900226,1760205698212,-5000.0,0.00023651,2]
[390900227,1760205698246,-0.01,0.0002389,2]
[390900228,1760205698435,-10000.01,0.0002389,2]
[390900229,1760205698560,-10000.01,0.0002389,2]
[390900230,1760205698793,-4858.39643454,0.0002389,2]
[390900231,1760205698816,-283.21713092,0.0002389,2]
[390900232,1760205698925,-224.21023844,0.00023893,2]
[390900233,1760205698962,-500.0,0.00023899,2]
[390900234,1760205698992,-500.0,0.00023899,2]
[390900235,1760205699024,-500.0,0.00023899,2]
[390900236,1760205699056,-500.0,0.00023899,2]
[390900237,1760205699089,-500.0,0.00023899,2]
[390900238,1760205699121,-500.0,0.00023899,2]
[390900239,1760205699152,-500.0,0.00023899,2]
[390900240,1760205699183,-500.0,0.00023899,2]
[390900241,1760205699213,-422.10639068,0.00023899,2]
[390900242,1760205699241,-178.3188313,0.00023899,2]
[390900243,1760205699415,-350.73907916,0.00023899,2]
[390900244,1760205699452,-149.26092084,0.00023899,2]
[390900245,1760205699480,-500.0,0.00023899,2]
[390900246,1760205699509,-500.0,0.00023899,2]
[390900247,1760205699539,-500.0,0.00023899,2]
[390900248,1760205699568,-500.0,0.00023899,2]
[390900249,1760205699597,-500.0,0.00023899,2]
[390900250,1760205699628,-648.34778823,0.00023899,2]
[390900251,1760205699655,-246.42167549,0.00023899,2]
[390900252,1760205699683,-500.0,0.00023899,2]
[390900253,1760205699711,-500.0,0.00023899,2]
[390900254,1760205699738,-411.94923088,0.00023899,2]
[390900255,1760205699902,-88.05076912,0.00023899,2]
[390900256,1760205699936,-500.0,0.00023899,2]
[390900257,1760205699968,-500.0,0.00023899,2]
[390900258,1760205699998,-500.0,0.00023899,2]
[390900259,1760205700029,-500.0,0.00023899,2]
[390900260,1760205700061,-441.27947508,0.00023899,2]
[390900261,1760205700092,-500.0,0.00023899,2]
[390900262,1760205700121,-500.0,0.00023899,2]
[390900263,1760205700150,-500.0,0.00023899,2]
[390900264,1760205700177,-500.0,0.00023899,2]
[390900265,1760205700206,-500.0,0.00023899,2]
[390900266,1760205700359,-117.45104984,0.00023899,2]
[390900267,1760205703550,-382.54895016,0.00023899,2]
[390900268,1760205703581,-500.0,0.00023899,2]
[390900269,1760205703611,-500.0,0.00023899,2]
[390900270,1760205703647,-500.0,0.00023899,2]
[390900271,1760205703679,-500.0,0.00023899,2]
[390900272,1760205703843,-500.0,0.00023899,2]
[390900273,1760205703876,-500.0,0.00023899,2]
[390900274,1760205703906,-500.0,0.00023899,2]
[390900275,1760205703937,-500.0,0.00023899,2]
[390900276,1760205703967,-500.0,0.00023899,2]
[390900277,1760205704150,-234.91209968,0.0002389,10]
[390900278,1760205706034,-334.84790032,0.0002389,10]
[390900279,1760205706072,-500.0,0.00023899,2]
[390900280,1760205706109,-500.0,0.00023899,2]
[390900281,1760205706144,-500.0,0.00023899,2]
[390900282,1760205706178,-500.0,0.00023899,2]
[390900283,1760205706210,-500.0,0.00023899,2]
[390900284,1760205706240,-500.0,0.00023899,2]
[390900285,1760205706270,-500.0,0.00023899,2]
[390900286,1760205706300,-500.0,0.00023899,2]
[390900287,1760205706329,-500.0,0.00023899,2]
[390900288,1760205706548,-330.31419936,0.00023899,2]
[390900289,1760205706578,1000.0,0.00022984,2]
[390900290,1760205710473,-138.31135558,0.00023899,2]
[390900291,1760205710504,-500.0,0.00023899,2]
[390900292,1760205710534,-500.0,0.00023899,2]
[390900293,1760205710564,-500.0,0.00023899,2]
[390900294,1760205710592,-412.30365836,0.00023899,2]
[390900295,1760205710618,-181.63492223,0.00023899,2]
[390900296,1760205710807,-4535.51012766,0.000239,2]
[390900297,1760205710821,-10000.01,0.000239,2]
[390900298,1760205718453,-474.8,0.0002389,10]
[390900299,1760205718486,-9050.41,0.000239,2]
[390900300,1760205718800,-10000.01,0.000239,2]
[390900301,1760205738517,-2067.85572943,0.00023424,2]
[390900302,1760205761883,150.0,0.00019026,2]
[390900303,1760205762324,173.93,0.00020756,2]
[390900304,1760205763233,260.9,0.00022485,2]
[390900305,1760205843291,150.0,0.00018879,2]
[390900306,1760205843760,159.04,0.00020595,2]
[390900307,1760205844092,238.57,0.00022311,2]
[390900308,1760205864641,-5000.0,0.00023661,2]
[390900309,1760205867098,-2333.54476428,0.000238,2]
[390900310,1760205867126,-357.78279348,0.00023803,2]
[390900311,1760205867153,-500.0,0.00023873,2]
[390900312,1760205867182,-500.0,0.00023873,2]
[390900313,1760205867211,-300.0,0.00023898,2]
[390900314,1760205867240,-817.35488448,0.00023899,2]
[390900315,1760205867782,-382.64511552,0.00023899,2]
[390900316,1760205867851,-8484.93488448,0.000239,2]
[390900317,1760205868256,-10000.01,0.000239,2]
[390900318,1760205868992,-395.67,0.0002389,10]
[390900319,1760205869027,-9208.67,0.000239,2]
[390900320,1760205869431,-10000.01,0.000239,2]
[390900321,1760205869867,-10000.01,0.000239,2]
[390900322,1760205870408,-10000.01,0.000239,2]
[390900323,1760205870556,-10000.01,0.000239,2]
[390900324,1760205871348,-10000.01,0.000239,2]
[390900325,1760205871804,-10000.01,0.000239,2]
[390900326,1760205874077,-5000.0,0.00023661,2]
[390900327,1760205874112,-0.01,0.000239,2]
[390900328,1760205874445,-10000.01,0.000239,2]
[390900329,1760205877435,-10000.01,0.000239,2]
[390900330,1760205877607,-10000.01,0.000239,2]
[390900331,1760205878168,-10000.01,0.000239,2]
[390900332,1760205878376,-10000.01,0.000239,2]
[390900333,1760205878555,-10000.01,0.000239,2]
[390900334,1760205878668,-10000.01,0.000239,2]
[390900335,1760205878801,-10000.01,0.000239,2]
[390900336,1760205878922,-10000.01,0.000239,2]
[390900337,1760205879079,-10000.01,0.000239,2]
[390900338,1760205879199,-10000.01,0.000239,2]
[390900339,1760205879331,-10000.01,0.000239,2]
[390900340,1760205879446,-10000.01,0.000239,2]
[390900341,1760205879569,-10000.01,0.000239,2]
[390900342,1760205879691,-329.73,0.0002389,10]
[390900343,1760205879725,-9340.55,0.000239,2]
[390900344,1760205879794,-10000.01,0.000239,2]
[390900345,1760205879901,-10000.01,0.000239,2]
[390900346,1760205880128,-10000.01,0.000239,2]
[390900347,1760205880235,-10000.01,0.000239,2]
[390900348,1760205880337,-10000.01,0.000239,2]
[390900349,1760205880559,-10000.01,0.000239,2]
[390900350,1760205880685,-10000.01,0.000239,2]
[390900351,1760205880815,-10000.01,0.000239,2]
[390900352,1760205881021,-10000.01,0.000239,2]
[390900353,1760205881180,-620.41501214,0.000239,2]
[390900354,1760205881203,-8759.17997572,0.000239,2]
[390900355,1760205912095,-4188.78719326,0.00023496,2]
[390900356,1760205913305,-367.74319653,0.00023733,2]
[390900357,1760205920620,150.0,0.00018881,2]
[390900358,1760205921006,223.77,0.00020597,2]
[390900359,1760205921387,335.66,0.00022313,2]
[390900360,1760205995974,10000.01,0.00022871,2]
[390900361,1760205995998,10000.01,0.00022871,2]
[390900362,1760205996020,1069.4967667,0.00022871,2]
[390900363,1760205998368,150.0,0.00018886,2]
[390900364,1760205998784,205.71,0.00020603,2]
[390900365,1760205999220,308.57,0.00022319,2]
[390900366,1760206020407,-4632.25680347,0.00023733,2]
[390900367,1760206020435,-222.72603367,0.00023733,2]
[390900368,1760206025913,290.04432572,0.00023733,2]
[390900369,1760206025936,4709.95567428,0.00023733,2]
[390900370,1760206033567,-300.0,0.00023789,2]
[390900371,1760206033588,-114.17979024,0.0002379,3]
[390900372,1760206035884,-335.44531668,0.0002379,3]
[390900373,1760206037406,-164.55468332,0.0002379,3]
[390900374,1760206039770,-287.64391034,0.0002379,3]
[390900375,1760206042068,-20.90629942,0.0002379,3]
[390900376,1760206042097,-265.29739434,0.0002379,3]
[390900377,1760206043526,-196.07260566,0.0002379,3]
[390900378,1760206043551,-1.87146447,0.0002379,3]
[390900379,1760206045664,-223.45750521,0.0002379,3]
[390900380,1760206048166,-5.35103032,0.0002379,3]
[390900381,1760206048191,-315.24115574,0.0002379,3]
[390900382,1760206048292,5000.0,0.00023733,2]
[390900383,1760206048498,-376.83884426,0.0002379,3]
[390900384,1760206048526,-521.69,0.0002379,3]
[390900385,1760206048553,-248.27,0.0002379,10]
[390900386,1760206048580,-1200.0,0.00023798,2]
[390900387,1760206048609,-160.58817146,0.00023799,2]
[390900388,1760206048636,-183.14975425,0.00023799,2]
[390900389,1760206048665,-500.0,0.00023799,2]
[390900390,1760206048692,-604.58660834,0.00023799,2]
[390900391,1760206048720,-500.0,0.00023799,2]
[390900392,1760206048748,-500.0,0.00023799,2]
[390900393,1760206049103,-500.0,0.00023799,2]
[390900394,1760206049133,-564.36255549,0.00023799,2]
[390900395,1760206049162,-500.0,0.00023799,2]
[390900396,1760206049645,-4837.8513657,0.000238,2]
[390900397,1760206049659,-10000.01,0.000238,2]
[390900398,1760206049683,-10000.01,0.000238,2]
[390900399,1760206049799,-10000.01,0.000238,2]
[390900400,1760206049922,-10000.01,0.000238,2]
[390900401,1760206050047,-10000.01,0.000238,2]
[390900402,1760206050158,-10000.01,0.000238,2]
[390900403,1760206050347,-10000.01,0.000238,2]
[390900404,1760206050494,-500.0,0.00023799,2]
[390900405,1760206050522,-500.0,0.00023799,2]
[390900406,1760206050551,-500.0,0.00023799,2]
[390900407,1760206050626,-260.84,0.0002379,3]
[390900408,1760206050636,-500.0,0.00023799,2]
[390900409,1760206050648,-500.0,0.00023799,2]
[390900410,1760206050658,-500.0,0.00023799,2]
[390900411,1760206050667,-5239.17,0.000238,2]
[390900412,1760206050768,-500.0,0.00023799,2]
[390900413,1760206050797,-500.0,0.00023799,2]
[390900414,1760206050826,-419.0642615,0.00023799,2]
[390900415,1760206050854,-500.0,0.00023799,2]
[390900416,1760206050936,-500.0,0.00023799,2]
[390900417,1760206050946,-5661.881477,0.000238,2]
[390900418,1760206050963,-10000.01,0.000238,2]
[390900419,1760206051216,-500.0,0.00023799,2]
[390900420,1760206051246,-500.0,0.00023799,2]
[390900421,1760206051274,-500.0,0.00023799,2]
[390900422,1760206051331,-7000.01,0.000238,2]
[390900423,1760206051355,-10000.01,0.000238,2]
[390900424,1760206051627,-10000.01,0.000238,2]
[390900425,1760206051653,-151.29439503,0.000238,2]
[390900426,1760206052048,-10000.01,0.000238,2]
[390900427,1760206061200,-362.55,0.0002379,10]
[390900428,1760206061239,-782.57,0.0002379,3]
[390900429,1760206061248,-8492.34,0.000238,2]
[390900430,1760206066653,-500.0,0.00023799,2]
[390900431,1760206066683,-500.0,0.00023799,2]
[390900432,1760206066711,-500.0,0.00023799,2]
[390900433,1760206066740,-500.0,0.00023799,2]
[390900434,1760206066769,-500.0,0.00023799,2]
[390900435,1760206066798,-500.0,0.00023799,2]
[390900436,1760206066827,-500.0,0.00023799,2]
[390900437,1760206066855,-500.0,0.00023799,2]
[390900438,1760206066883,-500.0,0.00023799,2]
[390900439,1760206066912,-500.0,0.00023799,2]
[390900440,1760206067058,-0.01,0.000238,2]
[390900441,1760206073073,-5000.0,0.00023562,2]
[390900442,1760206073119,-0.01,0.0002379,10]
[390900443,1760206073173,-302.12,0.0002379,10]
[390900444,1760206073209,-9395.77,0.000238,2]
[390900445,1760206073384,-10000.01,0.000238,2]
[390900446,1760206074413,-10000.01,0.000238,2]
[390900447,1760206074543,-10000.01,0.000238,2]
[390900448,1760206074751,-10000.01,0.000238,2]
[390900449,1760206074918,-10000.01,0.000238,2]
[390900450,1760206075044,-10000.01,0.000238,2]
[390900451,1760206075156,-10000.01,0.000238,2]
[390900452,1760206075279,-10000.01,0.000238,2]
[390900453,1760206075386,-10000.01,0.000238,2]
[390900454,1760206075510,-10000.01,0.000238,2]
[390900455,1760206075722,-10000.01,0.000238,2]
[390900456,1760206075848,-10000.01,0.000238,2]
[390900457,1760206076095,-10000.01,0.000238,2]
[390900458,1760206076216,-10000.01,0.000238,2]
[390900459,1760206076485,-10000.01,0.000238,2]
[390900460,1760206076614,-10000.01,0.000238,2]
[390900461,1760206076917,-10000.01,0.000238,2]
[390900462,1760206076997,150.0,0.00018885,2]
[390900463,1760206077022,-10000.01,0.000238,2]
[390900464,1760206077275,-10000.01,0.000238,2]
[390900465,1760206077392,-10000.01,0.000238,2]
[390900466,1760206077419,203.0,0.00020601,2]
[390900467,1760206077636,-10000.01,0.000238,2]
[390900468,1760206083133,372.2,0.00015205,6]
[390900469,1760206083437,372.2,0.00015205,6]
[390900470,1760206092901,-304.5,0.00022318,2]
[390900471,1760206093553,239.16009592,0.00022095,2]
[390900472,1760206093575,4760.83990408,0.00022095,2]
[390900473,1760206116662,5000.0,0.00022998,2]
[390900474,1760206138786,5000.0,0.00022999,2]
[390900475,1760206155855,169.07,0.00018918,2]
[390900476,1760206156249,338.13,0.00020638,2]
[390900477,1760206156642,507.2,0.00022358,2]
[390900478,1760206161352,5000.0,0.00022999,2]
[390900479,1760206183395,5000.0,0.00022999,2]
[390900480,1760206205402,5000.0,0.00023,2]
[390900481,1760206227634,5000.0,0.00023,2]
[390900486,1760206231775,-462.228,0.00023449,2]
[390900487,1760206231787,-1720.09154532,0.00023449,2]
[390900671,1760206237799,-2782.87045468,0.00023449,2]
[390900673,1760206237808,-429.74860408,0.00023686,2]
[390900675,1760206237818,-1200.0,0.00023798,2]
[390900677,1760206237827,-300.0,0.00023798,2]
[390900679,1760206237836,-300.0,0.00023799,2]
[390900681,1760206237846,-300.0,0.00023799,2]
[390900683,1760206237856,-300.0,0.00023799,2]
[390900685,1760206237865,-300.0,0.00023799,2]
[390900687,1760206237874,-3068.78094132,0.000238,2]
[390900903,1760206242745,-3e-08,0.000238,2]
[390900906,1760206242759,-6152.57182092,0.000238,2]
[390900907,1760206242768,-151.0,0.000238,2]
[390900909,1760206242777,-489.32051284,0.00023885,2]
[390900963,1760206245345,0.01,0.00018916,2]
[390900964,1760206245367,198.66,0.00018916,2]
[390900965,1760206245785,397.35,0.00020636,2]
[390900973,1760206246174,596.02,0.00022355,2]
[390900974,1760206247955,199.0,0.00021699,5]
[390900975,1760206279980,2953.789337,0.00022937,2]
[390900976,1760206325823,189.07,0.0001891,2]
[390900977,1760206326114,378.13,0.00020629,2]
[390900978,1760206331288,567.2,0.00022348,2]
[390900979,1760206336887,485.885386,0.00022876,2]
[390900980,1760206409654,197.29,0.00018948,2]
[390900981,1760206410046,394.58,0.00020671,2]
[390900982,1760206410647,591.87,0.00022393,2]
[390900983,1760206453530,-303.99653115,0.00023383,2]
[390900984,1760206455682,-393.36822824,0.00023383,2]
[390900985,1760206462283,154.0,0.00024,120]
[390900986,1760206463699,154.0,0.000268,120]
[390900987,1760206491575,195.13,0.00018887,2]
[390900988,1760206491973,390.27,0.00020604,2]
[390900989,1760206492385,585.4,0.00022321,2]
[390900990,1760206535311,-4302.63524061,0.00023383,2]
[390900991,1760206535343,-269.04485515,0.00023383,2]
[390900992,1760206547163,-207.54420889,0.00023619,2]
[390900993,1760206549533,-205.10522659,0.00023633,2]
[390900994,1760206549553,-120.60016802,0.0002365,2]
[390900995,1760206551083,5000.0,0.00023619,2]
[390900996,1760206551399,-174.29460539,0.0002365,2]
[390900997,1760206559054,500.0,0.00023619,2]
[390900998,1760206574362,5000.0,0.00023619,2]
[390900999,1760206576222,184.91,0.00018839,2]
[390901000,1760206576872,369.83,0.00020552,2]
[390901001,1760206577286,554.74,0.00022265,2]
[390901002,1760206578148,-390.97741152,0.0002365,2]
[390901003,1760206581801,1291.295,0.00023619,2]
[390901004,1760206592172,168.0,0.00023745,2]
[390901005,1760206594364,-1572.311603,0.00023786,2]
[390901006,1760206596633,5000.0,0.00023786,2]
[390901007,1760206601052,-1555.69650952,0.00023817,2]
[390901008,1760206602696,168.0,0.0002342,2]
[390901009,1760206613924,168.0,0.0002355,2]
[390901010,1760206614594,-300.0,0.00023872,2]
[390901011,1760206614622,-1200.0,0.00023872,2]
[390901012,1760206614819,-300.0,0.00023872,2]
[390901013,1760206619373,5000.0,0.00023872,2]
[390901014,1760206622207,300.0,0.00023872,2]
[390901015,1760206623930,168.0,0.0002364,2]
[390901016,1760206629590,168.0,0.00023651,2]
[390901017,1760206636945,-500.9986309,0.00023873,2]
[390901018,1760206636973,-501.33344174,0.00023873,2]
[390901019,1760206637000,-500.0,0.00023873,2]
[390901020,1760206637027,-500.0,0.00023873,2]
[390901021,1760206637054,-500.0,0.00023873,2]
[390901022,1760206637084,-500.0,0.00023873,2]
[390901023,1760206637131,-500.0,0.00023873,2]
[390901024,1760206637168,-504.1325774,0.00023873,2]
[390901025,1760206640718,168.0,0.00023715,2]
[390901026,1760206642004,1819.08069992,0.00023873,2]
[390901027,1760206642026,3180.91930008,0.00023873,2]
[390901028,1760206645512,168.0,0.00023421,2]
[390901029,1760206645974,-300.0,0.00023883,2]
[390901030,1760206646004,-300.0,0.00023883,2]
[390901031,1760206646033,-300.0,0.00023883,2]
[390901032,1760206655594,170.87,0.00018841,2]
[390901033,1760206655891,168.0,0.00023477,2]
[390901034,1760206656003,341.74,0.00020554,2]
[390901035,1760206656389,512.62,0.00022267,2]
[390901036,1760206660804,168.0,0.00023621,2]
[390901037,1760206662818,-1200.0,0.00023884,2]
[390901038,1760206665156,3620.6321641,0.00023883,2]
[390901039,1760206671379,168.0,0.00023522,2]
[390901040,1760206682079,168.0,0.00023764,2]
[390901041,1760206682617,300.0,0.00023884,2]
[390901042,1760206738297,157.82,0.00018832,2]
[390901043,1760206738789,315.65,0.00020544,2]
[390901044,1760206738846,521.47351377,0.000238,2]
[390901045,1760206739210,473.47,0.00022256,2]
[390901046,1760206742316,6262.2760648,0.00023766,2]
[390901047,1760206743889,-3186.06999935,0.00023885,2]
[390901048,1760206743999,-3120.35645779,0.00023885,2]
[390901049,1760206744025,-3759.29708442,0.00023885,2]
[390901050,1760206744149,-1289.65,0.0002389,3]
[390901051,1760206744179,-773.91,0.0002389,3]
[390901052,1760206744206,-386.96,0.0002389,3]
[390901053,1760206744233,-193.48,0.0002389,3]
[390901054,1760206744261,-580.46,0.0002389,3]
[390901055,1760206744289,-329.6,0.0002389,10]
[390901056,1760206744320,-564.4,0.0002389,10]
[390901057,1760206744347,-329.0,0.00023894,3]
[390901058,1760206744379,-329.0,0.00023894,3]
[390901059,1760206744409,-118.09,0.00023894,3]
[390901060,1760206744533,-210.91,0.00023894,3]
[390901061,1760206744560,-329.0,0.00023894,3]
[390901062,1760206744587,-329.0,0.00023894,3]
[390901063,1760206744618,-329.0,0.00023894,3]
[390901064,1760206744644,-329.0,0.00023894,3]
[390901065,1760206744671,-329.0,0.00023894,3]
[390901066,1760206744698,-3008.35250648,0.00023894,2]
[390901067,1760206744818,-271.48498704,0.00023894,2]
[390901068,1760206744846,-166.0,0.00023895,3]
[390901069,1760206744874,-172.0,0.00023895,3]
[390901070,1760206744904,-166.0,0.00023895,3]
[390901071,1760206744933,-166.0,0.00023895,3]
[390901072,1760206744962,-166.0,0.00023895,3]
[390901073,1760206744991,-329.0,0.00023895,3]
[390901074,1760206745019,-329.0,0.00023895,3]
[390901075,1760206745047,-172.0,0.00023895,3]
[390901076,1760206745075,-329.0,0.00023895,3]
[390901077,1760206745102,-329.0,0.00023895,3]
[390901078,1760206745131,-329.0,0.00023895,3]
[390901079,1760206745160,-329.0,0.00023895,3]
[390901080,1760206745188,-329.0,0.00023895,3]
[390901081,1760206745216,-329.0,0.00023895,3]
[390901082,1760206745246,-329.0,0.00023895,3]
[390901083,1760206745275,-329.0,0.00023895,3]
[390901084,1760206745304,-329.0,0.00023895,3]
[390901085,1760206745677,-329.0,0.00023895,3]
[390901086,1760206745707,-329.0,0.00023895,3]
[390901087,1760206745734,-329.0,0.00023895,3]
[390901088,1760206745761,-329.0,0.00023895,3]
[390901089,1760206745788,-329.0,0.00023895,3]
[390901090,1760206745814,-334.41020079,0.00023895,3]
[390901091,1760206745840,-329.0,0.00023895,3]
[390901092,1760206745867,-329.0,0.00023895,3]
[390901093,1760206745893,-329.0,0.00023895,3]
[390901094,1760206745919,-329.0,0.00023895,3]
[390901095,1760206745946,-329.0,0.00023895,3]
[390901096,1760206745974,-329.0,0.00023895,3]
[390901097,1760206746002,-329.0,0.00023895,3]
[390901098,1760206746029,-329.0,0.00023895,3]
[390901099,1760206746056,-329.0,0.00023895,3]
[390901100,1760206746495,-329.0,0.00023895,3]
[390901101,1760206746522,-329.0,0.00023895,3]
[390901102,1760206746551,-329.0,0.00023895,3]
[390901103,1760206746580,-329.0,0.00023895,3]
[390901104,1760206746609,-329.0,0.00023895,3]
[390901105,1760206746636,-329.0,0.00023895,3]
[390901106,1760206746664,-1000.0,0.00023899,2]
[390901107,1760206746694,-500.0,0.00023899,2]
[390901108,1760206746724,-500.0,0.00023899,2]
[390901109,1760206746752,-500.0,0.00023899,2]
[390901110,1760206746782,-500.0,0.00023899,2]
[390901111,1760206746916,-470.34,0.0002389,10]
[390901112,1760206746945,-500.0,0.00023899,2]
[390901113,1760206746973,-500.0,0.00023899,2]
[390901114,1760206747001,-299.89425772,0.00023899,2]
[390901115,1760206747590,-68.15055445,0.000239,2]
[390901116,1760206747607,-500.0,0.000239,2]
[390901117,1760206747620,-299.89425772,0.000239,2]
[390901118,1760206747633,-6459.54148456,0.000239,2]
[390901119,1760206747677,-500.0,0.00023895,3]
[390901120,1760206747743,-9000.01,0.000239,2]
[390901121,1760206747756,-10000.01,0.000239,2]
[390901122,1760206747768,-10000.01,0.000239,2]
[390901123,1760206747794,-10000.01,0.000239,2]
[390901124,1760206754089,-10000.01,0.000239,2]
[390901125,1760206754303,-10000.01,0.000239,2]
[390901126,1760206754544,-10000.01,0.000239,2]
[390901127,1760206754867,-10000.01,0.000239,2]
[390901128,1760206755084,-10000.01,0.000239,2]
[390901129,1760206755564,-10000.01,0.000239,2]
[390901130,1760206755630,-10000.01,0.000239,2]
[390901131,1760206755859,-10000.01,0.000239,2]
[390901132,1760206756014,-10000.01,0.000239,2]
[390901133,1760206756407,-10000.01,0.000239,2]
[390901134,1760206756557,-10000.01,0.000239,2]
[390901135,1760206756718,-10000.01,0.000239,2]
[390901136,1760206756899,-10000.01,0.000239,2]
[390901137,1760206757056,-391.95,0.0002389,10]
[390901138,1760206757090,-9216.11,0.000239,2]
[390901139,1760206757184,-10000.01,0.000239,2]
[390901140,1760206757346,-10000.01,0.000239,2]
[390901141,1760206757484,-10000.01,0.000239,2]
[390901142,1760206757630,-10000.01,0.000239,2]
[390901143,1760206757768,-10000.01,0.000239,2]
[390901144,1760206758020,-10000.01,0.000239,2]
[390901145,1760206758171,-10000.01,0.000239,2]
[390901146,1760206758297,-10000.01,0.000239,2]